[Event "ETCC Women 2013"]
[Site "Warsaw"]
[Date "2013.11.12"]
[Round "5"]
[White "Kiolbasa, Oliwia"]
[Black "Tsolakidou, Stavroula"]
[Result "1-0"]
[ECO "B90"]
[WhiteElo "1982"]
[BlackElo "2117"]
[PlyCount "121"]
[EventDate "2013.??.??"]
[EventCountry "POL"]
[WhiteTeam "Poland"]
[BlackTeam "Greece"]
[WhiteTeamCountry "POL"]
[BlackTeamCountry "GRE"]
[TimeControl "40/5400+30:1800+30"]

1. e4 {[%emt 0:00:00]} c5 {[%emt 0:00:00]} 2. Nf3 {[%emt 0:00:00]} d6 {[%emt 0:
00:00]} 3. d4 {[%emt 0:00:02]} cxd4 {[%emt 0:00:04]} 4. Nxd4 {[%emt 0:00:23]}
Nf6 {[%emt 0:00:14]} 5. Nc3 {[%emt 0:00:13]} a6 {[%emt 0:00:11]} 6. h3 {[%emt
0:00:42]} e5 {[%emt 0:01:13]} 7. Nde2 {[%emt 0:00:14]} h5 {[%emt 0:02:16]} 8.
Bg5 {[%emt 0:00:23]} Be6 {[%emt 0:15:32]} 9. Bxf6 {[%emt 0:00:31]} Qxf6 {[%emt
0:00:10]} 10. Nd5 {[%emt 0:00:17]} Qd8 {[%emt 0:00:20]} 11. Nec3 {[%emt 0:00:
23]} Be7 {[%emt 0:11:44]} 12. a4 {[%emt 0:05:32]} Nc6 {[%emt 0:05:17]} 13. Bc4
{[%emt 0:02:43]} Bg5 {[%emt 0:02:56]} 14. O-O {[%emt 0:07:28]} h4 {[%emt 0:00:
53]} 15. Ba2 {[%emt 0:05:59]} O-O {[%emt 0:03:48]} 16. Ne3 {[%emt 0:15:41]} Nd4
{[%emt 0:09:07]} 17. Ncd5 {[%emt 0:04:07]} b5 {[%emt 0:05:56]} 18. c3 {[%emt 0:
07:01]} Nc6 {[%emt 0:00:40]} 19. Nf5 {[%emt 0:06:12]} Bxf5 {[%emt 0:16:59]} 20.
exf5 {[%emt 0:00:23]} Ne7 {[%emt 0:08:20]} 21. Ne3 {[%emt 0:07:26]} Qb6 {[%emt
0:06:46]} 22. Qg4 {[%emt 0:08:58]} Bxe3 {[%emt 0:04:56]} 23. f6 {[%emt 0:00:11]
} Bh6 {[%emt 0:00:57]} 24. fxe7 {[%emt 0:00:41]} Rfe8 {[%emt 0:01:12]} 25. Qf3
{[%emt 0:02:29]} Bf4 {[%emt 0:01:28]} 26. Qd5 {[%emt 0:00:34]} Qc7 {[%emt 0:00:
34]} 27. Qxf7+ {[%emt 0:00:46]} Kh8 {[%emt 0:00:06]} 28. Bd5 {[%emt 0:01:23]}
Rab8 {[%emt 0:00:36]} 29. Qg6 {[%emt 0:04:14]} Qxe7 {[%emt 0:00:33]} 30. Be4 {
[%emt 0:00:07]} Kg8 {[%emt 0:00:29]} 31. Qh7+ {[%emt 0:00:20]} Kf8 {[%emt 0:00:
51]} 32. Bg6 {[%emt 0:01:12]} Qe6 {[%emt 0:00:43]} 33. Bxe8 {[%emt 0:03:29]}
Rxe8 {[%emt 0:00:06]} 34. axb5 {[%emt 0:00:23]} axb5 {[%emt 0:00:17]} 35. Ra7 {
[%emt 0:00:30]} Qh6 {[%emt 0:01:33]} 36. Qxh6 {[%emt 0:02:04]} Bxh6 {[%emt 0:
00:06]} 37. Rb7 {[%emt 0:00:39]} e4 {[%emt 0:00:48]} 38. Rxb5 {[%emt 0:00:27]}
Kf7 {[%emt 0:00:22]} 39. Rd1 {[%emt 0:04:12]} Ke6 {[%emt 0:00:41]} 40. Rb6 {
[%emt 0:00:00]} Bf4 {[%emt 0:00:00]} 41. Kf1 {[%emt 0:03:58]} g5 {[%emt 0:01:
00]} 42. Ke2 {[%emt 0:07:07]} Kd7 {[%emt 0:02:09]} 43. Ra1 {[%emt 0:03:04]} Kc7
{[%emt 0:02:13]} 44. Rba6 {[%emt 0:00:17]} Rb8 {[%emt 0:00:35]} 45. b4 {[%emt
0:01:01]} Kd7 {[%emt 0:00:52]} 46. Ra8 {[%emt 0:01:15]} Rb6 {[%emt 0:00:55]}
47. R1a7+ {[%emt 0:10:53]} Ke6 {[%emt 0:04:19]} 48. Re8+ {[%emt 0:01:03]} Kf5 {
[%emt 0:03:48]} 49. Ra5+ {[%emt 0:03:02]} Be5 {[%emt 0:00:27]} 50. Rc8 {[%emt
0:01:04]} Ke6 {[%emt 0:05:30]} 51. Ke3 {[%emt 0:00:38]} d5 {[%emt 0:01:18]} 52.
Re8+ {[%emt 0:00:22]} Kf6 {[%emt 0:00:41]} 53. Rxd5 {[%emt 0:00:12]} Bxc3 {
[%emt 0:00:15]} 54. b5 {[%emt 0:00:04]} Bb4 {[%emt 0:02:27]} 55. Kxe4 {[%emt 0:
00:17]} Kf7 {[%emt 0:03:03]} 56. Ree5 {[%emt 0:00:47]} Bc3 {[%emt 0:01:21]} 57.
Rxg5 {[%emt 0:00:20]} Bf6 {[%emt 0:00:11]} 58. Rg4 {[%emt 0:00:51]} Ke6 {[%emt
0:02:04]} 59. Rg6 {[%emt 0:00:47]} Kf7 {[%emt 0:00:20]} 60. Kf5 {[%emt 0:00:57]
} Ke7 {[%emt 0:00:12]} 61. Rc5 {[%emt 0:00:17]} 1-0

[Event "ETCC Women 2013"]
[Site "Warsaw"]
[Date "2013.11.12"]
[Round "5"]
[White "Klinova, Masha"]
[Black "Dworakowska, Joanna"]
[Result "0-1"]
[ECO "B40"]
[WhiteElo "2291"]
[BlackElo "2326"]
[PlyCount "40"]
[EventDate "2013.??.??"]
[EventCountry "POL"]
[WhiteTeam "Israel"]
[BlackTeam "Poland"]
[WhiteTeamCountry "ISR"]
[BlackTeamCountry "POL"]
[TimeControl "40/5400+30:1800+30"]

1. e4 c5 2. Nf3 e6 3. c4 Nc6 4. Nc3 Nd4 5. Nxd4 cxd4 6. Ne2 Nf6 7. Ng3 h5 8. h4
Qa5 9. Bd3 g5 10. Qf3 Rh6 11. a3 gxh4 12. Rxh4 Qg5 13. Rh1 Ng4 14. Be2 Ne5 15.
Qb3 d3 16. Rxh5 Rxh5 17. Bxh5 Bc5 18. Qd1 Qf4 19. Bf3 Ng4 20. Kf1 Nxf2 0-1

[Event "ETCC Women 2013"]
[Site "Warsaw"]
[Date "2013.11.12"]
[Round "5"]
[White "Kristinardottir, Elsa Maria"]
[Black "Messina, Roberta"]
[Result "0-1"]
[ECO "B52"]
[WhiteElo "1819"]
[BlackElo "2064"]
[PlyCount "98"]
[EventDate "2013.??.??"]
[EventCountry "POL"]
[WhiteTeam "Iceland"]
[BlackTeam "Italy"]
[WhiteTeamCountry "ISL"]
[BlackTeamCountry "ITA"]
[TimeControl "40/5400+30:1800+30"]

1. e4 {[%emt 0:00:00]} c5 {[%emt 0:00:00]} 2. Nf3 {[%emt 0:00:00]} d6 {[%emt 0:
00:00]} 3. Bb5+ {[%emt 0:00:00]} Bd7 {[%emt 0:00:07]} 4. Bxd7+ {[%emt 0:00:00]}
Qxd7 {[%emt 0:00:07]} 5. O-O {[%emt 0:00:08]} Nc6 {[%emt 0:00:20]} 6. c3 {
[%emt 0:00:07]} Nf6 {[%emt 0:00:46]} 7. d4 {[%emt 0:00:36]} cxd4 {[%emt 0:01:
43]} 8. cxd4 {[%emt 0:00:12]} d5 {[%emt 0:03:08]} 9. e5 {[%emt 0:00:13]} Ne4 {
[%emt 0:00:11]} 10. Ne1 {[%emt 0:00:24]} h6 {[%emt 0:09:12]} 11. Be3 {[%emt 0:
01:09]} Na5 {[%emt 0:07:43]} 12. f3 {[%emt 0:06:12]} Ng5 {[%emt 0:04:53]} 13.
Nd3 {[%emt 0:03:25]} e6 {[%emt 0:02:04]} 14. Nc3 {[%emt 0:04:16]} Rc8 {[%emt 0:
02:05]} 15. Rc1 {[%emt 0:02:25]} Nc4 {[%emt 0:03:24]} 16. Bf2 {[%emt 0:01:10]}
Be7 {[%emt 0:01:37]} 17. b3 {[%emt 0:11:34]} Na5 {[%emt 0:01:05]} 18. Na4 {
[%emt 0:01:02]} b6 {[%emt 0:01:26]} 19. Rxc8+ {[%emt 0:01:55]} Qxc8 {[%emt 0:
00:08]} 20. Qc1 {[%emt 0:01:00]} Qxc1 {[%emt 0:07:41]} 21. Rxc1 {[%emt 0:00:07]
} Kd7 {[%emt 0:00:27]} 22. Be3 {[%emt 0:02:39]} f6 {[%emt 0:05:00]} 23. Nf4 {
[%emt 0:02:58]} Ba3 {[%emt 0:08:23]} 24. Rc2 {[%emt 0:00:39]} fxe5 {[%emt 0:09:
00]} 25. Ng6 {[%emt 0:02:30]} Rc8 {[%emt 0:07:57]} 26. Nxe5+ {[%emt 0:00:54]}
Kd8 {[%emt 0:00:07]} 27. Bxg5+ {[%emt 0:01:17]} hxg5 {[%emt 0:00:09]} 28. Nf7+
{[%emt 0:00:19]} Kd7 {[%emt 0:06:34]} 29. Rxc8 {[%emt 0:00:49]} Kxc8 {[%emt 0:
00:04]} 30. Nxg5 {[%emt 0:00:06]} Kd7 {[%emt 0:00:14]} 31. Nf7 {[%emt 0:04:21]}
Nc6 {[%emt 0:00:52]} 32. Ne5+ {[%emt 0:01:08]} Nxe5 {[%emt 0:00:04]} 33. dxe5 {
[%emt 0:00:12]} d4 {[%emt 0:00:16]} 34. b4 {[%emt 0:01:16]} Kc6 {[%emt 0:00:11]
} 35. f4 {[%emt 0:02:31]} g6 {[%emt 0:11:03]} 36. g4 {[%emt 0:00:31]} Kd5 {
[%emt 0:00:12]} 37. Kf2 {[%emt 0:00:48]} Ke4 {[%emt 0:00:10]} 38. f5 {[%emt 0:
02:37]} gxf5 {[%emt 0:01:04]} 39. g5 {[%emt 0:02:05]} Kxe5 {[%emt 0:00:19]} 40.
h4 {[%emt 0:00:00]} Bc1 {[%emt 0:00:00]} 41. Kf3 {[%emt 0:02:35]} Kd5 {[%emt 0:
07:57]} 42. g6 {[%emt 0:00:19]} Bh6 {[%emt 0:00:10]} 43. Nb2 {[%emt 0:00:31]}
e5 {[%emt 0:00:10]} 44. Ke2 {[%emt 0:01:39]} e4 {[%emt 0:00:16]} 45. Nd1 {
[%emt 0:00:16]} Kc4 {[%emt 0:01:09]} 46. Nf2 {[%emt 0:00:39]} Kc3 {[%emt 0:00:
44]} 47. Kd1 {[%emt 0:00:40]} e3 {[%emt 0:03:07]} 48. Nh3 {[%emt 0:00:27]} d3 {
[%emt 0:00:21]} 49. Nf4 {[%emt 0:01:20]} Bxf4 {[%emt 0:00:11]} 0-1

[Event "ETCC Women 2013"]
[Site "Warsaw"]
[Date "2013.11.12"]
[Round "5"]
[White "Kulovana, Eva"]
[Black "Seps, Monika"]
[Result "0-1"]
[ECO "B92"]
[WhiteElo "2263"]
[BlackElo "2260"]
[PlyCount "82"]
[EventDate "2013.??.??"]
[EventCountry "POL"]
[WhiteTeam "Czech Republic"]
[BlackTeam "Switzerland"]
[WhiteTeamCountry "CZE"]
[BlackTeamCountry "SUI"]
[TimeControl "40/5400+30:1800+30"]

1. e4 {[%emt 0:00:00]} c5 {[%emt 0:00:00]} 2. Nf3 {[%emt 0:00:00]} d6 {[%emt 0:
00:00]} 3. d4 {[%emt 0:00:10]} cxd4 {[%emt 0:00:00]} 4. Nxd4 {[%emt 0:00:06]}
Nf6 {[%emt 0:00:00]} 5. Nc3 {[%emt 0:00:18]} a6 {[%emt 0:00:00]} 6. Be2 {[%emt
0:00:26]} e5 {[%emt 0:00:08]} 7. Nb3 {[%emt 0:00:14]} Be7 {[%emt 0:00:07]} 8.
O-O {[%emt 0:00:28]} O-O {[%emt 0:00:06]} 9. Re1 {[%emt 0:00:31]} Nc6 {[%emt 0:
10:45]} 10. Bf3 {[%emt 0:03:51]} a5 {[%emt 0:04:54]} 11. a4 {[%emt 0:02:30]}
Nb4 {[%emt 0:01:13]} 12. h3 {[%emt 0:55:54]} Be6 {[%emt 0:06:58]} 13. Bg5 {
[%emt 0:07:10]} Ne8 {[%emt 0:20:00]} 14. Bxe7 {[%emt 0:01:40]} Qxe7 {[%emt 0:
00:01]} 15. Nb5 {[%emt 0:05:48]} Nc7 {[%emt 0:05:41]} 16. c3 {[%emt 0:04:08]}
Nxb5 {[%emt 0:07:25]} 17. axb5 {[%emt 0:00:37]} Bxb3 {[%emt 0:00:03]} 18. Qxb3
{[%emt 0:00:08]} Nd3 {[%emt 0:00:04]} 19. Red1 {[%emt 0:00:44]} Nf4 {[%emt 0:
07:02]} 20. b6 {[%emt 0:03:42]} Qf6 {[%emt 0:11:53]} 21. Kh2 {[%emt 0:03:27]}
h5 {[%emt 0:05:15]} 22. Rd2 {[%emt 0:01:49]} Nxg2 {[%emt 0:02:28]} 23. Qd1 {
[%emt 0:02:22]} Nh4 {[%emt 0:04:46]} 24. Bxh5 {[%emt 0:01:39]} Qf4+ {[%emt 0:
00:48]} 25. Kh1 {[%emt 0:00:23]} Qxe4+ {[%emt 0:03:08]} 26. f3 {[%emt 0:00:06]}
Qh7 {[%emt 0:00:12]} 27. f4 {[%emt 0:00:56]} Qe4+ {[%emt 0:00:31]} 28. Kg1 {
[%emt 0:01:09]} g6 {[%emt 0:04:12]} 29. Bg4 {[%emt 0:01:58]} f5 {[%emt 0:00:44]
} 30. Re2 {[%emt 0:00:48]} Qxf4 {[%emt 0:00:37]} 31. Qd5+ {[%emt 0:01:12]} Kg7
{[%emt 0:03:18]} 32. Qxd6 {[%emt 0:00:13]} Qg3+ {[%emt 0:00:42]} 33. Kh1 {
[%emt 0:00:10]} fxg4 {[%emt 0:00:16]} 34. Qxe5+ {[%emt 0:00:23]} Qxe5 {[%emt 0:
00:04]} 35. Rxe5 {[%emt 0:00:03]} gxh3 {[%emt 0:00:46]} 36. Re7+ {[%emt 0:01:
06]} Rf7 {[%emt 0:00:23]} 37. Rxf7+ {[%emt 0:00:06]} Kxf7 {[%emt 0:00:01]} 38.
Kh2 {[%emt 0:00:06]} Ra6 {[%emt 0:01:16]} 39. Kxh3 {[%emt 0:00:26]} Nf5 {[%emt
0:00:05]} 40. b4 {[%emt 0:00:00]} Rxb6 {[%emt 0:00:00]} 41. Rxa5 {[%emt 0:02:
48]} Rc6 {[%emt 0:03:02]} 0-1

[Event "ETCC Women 2013"]
[Site "Warsaw"]
[Date "2013.11.12"]
[Round "5"]
[White "Lagno, Kateryna"]
[Black "Socko, Monika"]
[Result "1-0"]
[ECO "C11"]
[WhiteElo "2542"]
[BlackElo "2431"]
[PlyCount "71"]
[EventDate "2013.??.??"]
[EventCountry "POL"]
[WhiteTeam "Ukraine"]
[BlackTeam "Poland"]
[WhiteTeamCountry "UKR"]
[BlackTeamCountry "POL"]
[TimeControl "40/5400+30:1800+30"]

1. e4 {[%emt 0:00:00]} e6 {[%emt 0:00:00]} 2. d4 {[%emt 0:00:00]} d5 {[%emt 0:
00:00]} 3. Nc3 {[%emt 0:00:09]} Nf6 {[%emt 0:00:00]} 4. e5 {[%emt 0:00:14]}
Nfd7 {[%emt 0:00:04]} 5. f4 {[%emt 0:00:10]} c5 {[%emt 0:00:06]} 6. Nf3 {[%emt
0:00:10]} Nc6 {[%emt 0:00:05]} 7. Be3 {[%emt 0:00:08]} Be7 {[%emt 0:00:52]} 8.
Qd2 {[%emt 0:00:36]} O-O {[%emt 0:00:23]} 9. Be2 {[%emt 0:00:28]} a6 {[%emt 0:
08:08]} 10. O-O {[%emt 0:00:36]} b5 {[%emt 0:00:41]} 11. a3 {[%emt 0:00:20]}
Qb6 {[%emt 0:04:25]} 12. Nd1 {[%emt 0:00:57]} f5 {[%emt 0:05:58]} 13. c3 {
[%emt 0:07:15]} Na5 {[%emt 0:04:33]} 14. Qe1 {[%emt 0:00:46]} Nb3 {[%emt 0:07:
11]} 15. Rb1 {[%emt 0:00:51]} a5 {[%emt 0:01:12]} 16. Bd3 {[%emt 0:06:14]} b4 {
[%emt 0:06:04]} 17. Bc2 {[%emt 0:08:30]} bxa3 {[%emt 0:04:28]} 18. bxa3 {[%emt
0:00:32]} a4 {[%emt 0:00:52]} 19. Kh1 {[%emt 0:02:46]} Qa5 {[%emt 0:05:04]} 20.
Rg1 {[%emt 0:07:20]} cxd4 {[%emt 0:04:13]} 21. Nxd4 {[%emt 0:00:53]} Nxd4 {
[%emt 0:02:27]} 22. Bxd4 {[%emt 0:00:20]} Nc5 {[%emt 0:03:27]} 23. g4 {[%emt 0:
05:19]} Ne4 {[%emt 0:01:40]} 24. Ne3 {[%emt 0:06:31]} Qd8 {[%emt 0:05:16]} 25.
Qe2 {[%emt 0:10:05]} Ba6 {[%emt 0:11:05]} 26. Qf3 {[%emt 0:05:48]} fxg4 {[%emt
0:07:45]} 27. Nxg4 {[%emt 0:08:59]} Bg5 {[%emt 0:02:07]} 28. Nf6+ {[%emt 0:01:
35]} Bxf6 {[%emt 0:05:09]} 29. exf6 {[%emt 0:02:09]} g6 {[%emt 0:01:10]} 30. f5
{[%emt 0:07:36]} exf5 {[%emt 0:02:17]} 31. Qxf5 {[%emt 0:00:37]} Rxf6 {[%emt 0:
03:57]} 32. Bxf6 {[%emt 0:00:21]} Nxf6 {[%emt 0:00:01]} 33. Qe6+ {[%emt 0:02:
17]} Kg7 {[%emt 0:00:16]} 34. Bxg6 {[%emt 0:01:39]} Bc8 {[%emt 0:04:04]} 35.
Qf7+ {[%emt 0:00:53]} Kh8 {[%emt 0:00:27]} 36. Bf5 {[%emt 0:01:25]} 1-0

[Event "ETCC Women 2013"]
[Site "Warsaw"]
[Date "2013.11.12"]
[Round "5"]
[White "L'Ami, Alina"]
[Black "Lanchava, Tea"]
[Result "1-0"]
[ECO "A41"]
[WhiteElo "2361"]
[BlackElo "2289"]
[PlyCount "85"]
[EventDate "2013.??.??"]
[EventCountry "POL"]
[WhiteTeam "Romania"]
[BlackTeam "Netherlands"]
[WhiteTeamCountry "ROU"]
[BlackTeamCountry "NED"]
[TimeControl "40/5400+30:1800+30"]

1. d4 {[%emt 0:00:00]} d6 {[%emt 0:00:00]} 2. c4 {[%emt 0:00:00]} f5 {[%emt 0:
00:00]} 3. Nc3 {[%emt 0:01:53]} Nf6 {[%emt 0:00:33]} 4. Bg5 {[%emt 0:03:22]}
Ne4 {[%emt 0:09:36]} 5. Nxe4 {[%emt 0:06:36]} fxe4 {[%emt 0:00:20]} 6. Qc2 {
[%emt 0:07:42]} d5 {[%emt 0:09:12]} 7. e3 {[%emt 0:04:46]} c6 {[%emt 0:01:30]}
8. cxd5 {[%emt 0:04:38]} cxd5 {[%emt 0:04:53]} 9. Ne2 {[%emt 0:03:31]} Nc6 {
[%emt 0:02:26]} 10. Nc3 {[%emt 0:02:50]} h6 {[%emt 0:04:01]} 11. Bf4 {[%emt 0:
03:16]} g5 {[%emt 0:04:25]} 12. Bg3 {[%emt 0:03:43]} Bg7 {[%emt 0:01:24]} 13.
Be2 {[%emt 0:02:22]} h5 {[%emt 0:11:00]} 14. h4 {[%emt 0:11:11]} g4 {[%emt 0:
00:54]} 15. Nb5 {[%emt 0:08:12]} e5 {[%emt 0:04:28]} 16. Bxe5 {[%emt 0:05:34]}
Bxe5 {[%emt 0:10:02]} 17. dxe5 {[%emt 0:00:03]} O-O {[%emt 0:00:16]} 18. Rd1 {
[%emt 0:09:02]} Be6 {[%emt 0:08:15]} 19. Nd4 {[%emt 0:01:59]} Qe7 {[%emt 0:08:
22]} 20. Nxc6 {[%emt 0:07:34]} bxc6 {[%emt 0:01:45]} 21. Qxc6 {[%emt 0:05:24]}
Rac8 {[%emt 0:02:04]} 22. Qa4 {[%emt 0:02:05]} g3 {[%emt 0:02:08]} 23. f4 {
[%emt 0:02:32]} exf3 {[%emt 0:01:12]} 24. gxf3 {[%emt 0:00:02]} Rc4 {[%emt 0:
05:29]} 25. Bxc4 {[%emt 0:00:25]} g2 {[%emt 0:00:04]} 26. Rg1 {[%emt 0:00:40]}
Qxh4+ {[%emt 0:00:16]} 27. Kd2 {[%emt 0:01:58]} Qf2+ {[%emt 0:05:03]} 28. Be2 {
[%emt 0:00:02]} Rxf3 {[%emt 0:00:46]} 29. Qe8+ {[%emt 0:01:02]} Kg7 {[%emt 0:
00:03]} 30. Qe7+ {[%emt 0:00:45]} Kh8 {[%emt 0:00:24]} 31. Qxe6 {[%emt 0:00:52]
} Qxe3+ {[%emt 0:00:08]} 32. Kc2 {[%emt 0:00:00]} Qxe2+ {[%emt 0:01:46]} 33.
Kb1 {[%emt 0:00:01]} Rf2 {[%emt 0:01:04]} 34. Qc8+ {[%emt 0:00:26]} Kh7 {[%emt
0:00:38]} 35. Qb7+ {[%emt 0:00:58]} Kh6 {[%emt 0:00:05]} 36. Qc6+ {[%emt 0:00:
59]} Kh7 {[%emt 0:00:28]} 37. Qc3 {[%emt 0:00:16]} Qe4+ {[%emt 0:01:49]} 38.
Ka1 {[%emt 0:00:44]} h4 {[%emt 0:00:12]} 39. Rde1 {[%emt 0:00:52]} Qf5 {[%emt
0:00:24]} 40. Qc7+ {[%emt 0:00:00]} Kh6 {[%emt 0:00:00]} 41. e6 {[%emt 0:06:55]
} Rc2 {[%emt 0:25:01]} 42. Qxc2 {[%emt 0:04:20]} Qxc2 {[%emt 0:00:07]} 43. e7 {
[%emt 0:00:02]} 1-0

[Event "ETCC Women 2013"]
[Site "Warsaw"]
[Date "2013.11.12"]
[Round "5"]
[White "Mamedjarova, Turkan"]
[Black "Benmesbah, Natacha"]
[Result "1-0"]
[ECO "A74"]
[WhiteElo "2250"]
[BlackElo "2248"]
[PlyCount "133"]
[EventDate "2013.??.??"]
[EventCountry "POL"]
[WhiteTeam "Azerbaijan"]
[BlackTeam "France"]
[WhiteTeamCountry "AZE"]
[BlackTeamCountry "FRA"]
[TimeControl "40/5400+30:1800+30"]

1. d4 {[%emt 0:00:00]} Nf6 {[%emt 0:00:06]} 2. c4 {[%emt 0:00:05]} c5 {[%emt 0:
01:36]} 3. d5 {[%emt 0:00:21]} e6 {[%emt 0:00:37]} 4. Nc3 {[%emt 0:00:13]} exd5
{[%emt 0:00:12]} 5. cxd5 {[%emt 0:00:12]} d6 {[%emt 0:00:27]} 6. e4 {[%emt 0:
00:13]} g6 {[%emt 0:00:30]} 7. Be2 {[%emt 0:00:28]} Bg7 {[%emt 0:02:23]} 8. Nf3
{[%emt 0:00:34]} O-O {[%emt 0:05:24]} 9. O-O {[%emt 0:00:22]} a6 {[%emt 0:00:
41]} 10. a4 {[%emt 0:00:14]} Nbd7 {[%emt 0:00:10]} 11. Nd2 {[%emt 0:04:07]} Ne5
{[%emt 0:00:58]} 12. h3 {[%emt 0:02:07]} g5 {[%emt 0:16:13]} 13. Nf3 {[%emt 0:
15:28]} Nxf3+ {[%emt 0:02:21]} 14. Bxf3 {[%emt 0:03:18]} Nd7 {[%emt 0:09:19]}
15. Ne2 {[%emt 0:06:24]} Ne5 {[%emt 0:00:28]} 16. Ng3 {[%emt 0:00:30]} h6 {
[%emt 0:11:22]} 17. Bg4 {[%emt 0:04:44]} Nxg4 {[%emt 0:01:33]} 18. hxg4 {[%emt
0:00:02]} Be5 {[%emt 0:00:08]} 19. Nf5 {[%emt 0:01:47]} Bxf5 {[%emt 0:02:39]}
20. gxf5 {[%emt 0:07:09]} Qf6 {[%emt 0:01:30]} 21. Qh5 {[%emt 0:05:39]} Bd4 {
[%emt 0:01:20]} 22. Ra3 {[%emt 0:02:36]} Rfe8 {[%emt 0:01:09]} 23. Rh3 {[%emt
0:06:44]} Rxe4 {[%emt 0:04:07]} 24. Qxh6 {[%emt 0:03:06]} Qxh6 {[%emt 0:01:24]}
25. Rxh6 {[%emt 0:00:02]} f6 {[%emt 0:00:11]} 26. Kh2 {[%emt 0:03:01]} Kg7 {
[%emt 0:02:23]} 27. Rg6+ {[%emt 0:00:58]} Kf7 {[%emt 0:00:11]} 28. Kg3 {[%emt
0:01:26]} Re5 {[%emt 0:04:35]} 29. Kg4 {[%emt 0:04:58]} Rh8 {[%emt 0:00:27]}
30. g3 {[%emt 0:00:45]} Re2 {[%emt 0:10:50]} 31. f4 {[%emt 0:00:34]} gxf4 {
[%emt 0:00:19]} 32. Bxf4 {[%emt 0:00:23]} Be5 {[%emt 0:00:34]} 33. Bh6 {[%emt
0:04:41]} Rg8 {[%emt 0:01:56]} 34. Rxg8 {[%emt 0:02:45]} Kxg8 {[%emt 0:00:04]}
35. b3 {[%emt 0:00:18]} Re4+ {[%emt 0:03:51]} 36. Bf4 {[%emt 0:03:43]} Rb4 {
[%emt 0:06:04]} 37. Kh5 {[%emt 0:01:47]} Bxf4 {[%emt 0:02:35]} 38. gxf4 {[%emt
0:00:01]} Kf7 {[%emt 0:00:46]} 39. Kg4 {[%emt 0:02:55]} Rxb3 {[%emt 0:03:46]}
40. Rh1 {[%emt 0:00:00]} Kg7 {[%emt 0:00:00]} 41. Re1 {[%emt 0:00:11]} b5 {
[%emt 0:16:02]} 42. a5 {[%emt 0:01:08]} c4 {[%emt 0:02:03]} 43. Re7+ {[%emt 0:
01:08]} Kg8 {[%emt 0:00:19]} 44. Ra7 {[%emt 0:02:16]} b4 {[%emt 0:14:28]} 45.
Kh5 {[%emt 0:11:12]} Rg3 {[%emt 0:00:55]} 46. Rxa6 {[%emt 0:00:21]} Rg7 {[%emt
0:02:24]} 47. Rb6 {[%emt 0:08:11]} c3 {[%emt 0:00:43]} 48. Rxb4 {[%emt 0:00:52]
} Rc7 {[%emt 0:00:05]} 49. Kg6 {[%emt 0:01:27]} Kf8 {[%emt 0:01:12]} 50. Kxf6 {
[%emt 0:00:15]} Ke8 {[%emt 0:00:34]} 51. Ke6 {[%emt 0:00:21]} Kd8 {[%emt 0:00:
38]} 52. Rb8+ {[%emt 0:00:32]} Rc8 {[%emt 0:00:05]} 53. Rxc8+ {[%emt 0:00:14]}
Kxc8 {[%emt 0:00:07]} 54. f6 {[%emt 0:00:05]} c2 {[%emt 0:00:09]} 55. f7 {
[%emt 0:00:04]} c1=Q {[%emt 0:00:06]} 56. f8=Q+ {[%emt 0:00:05]} Kb7 {[%emt 0:
00:17]} 57. Qxd6 {[%emt 0:00:20]} Qe1+ {[%emt 0:00:20]} 58. Qe5 {[%emt 0:00:17]
} Qxa5 {[%emt 0:00:28]} 59. d6 {[%emt 0:00:12]} Qa6 {[%emt 0:00:30]} 60. f5 {
[%emt 0:00:26]} Kc6 {[%emt 0:00:55]} 61. Qc3+ {[%emt 0:00:46]} Kb7 {[%emt 0:00:
05]} 62. Qb4+ {[%emt 0:01:30]} Ka8 {[%emt 0:00:53]} 63. Qe4+ {[%emt 0:00:18]}
Kb8 {[%emt 0:00:28]} 64. Ke7 {[%emt 0:00:28]} Qa7+ {[%emt 0:00:54]} 65. d7 {
[%emt 0:00:19]} Qc5+ {[%emt 0:00:03]} 66. Ke8 {[%emt 0:01:05]} Qb5 {[%emt 0:00:
22]} 67. Qb4 {[%emt 0:00:10]} 1-0